{"text_format":"3","workbook":"xlsx","n_sheets":3,"sheets":["Lista de Estudantes","Lista da Turma","Detalhes do Estudante"],"not_rendered":{"images":2,"defined_names":8},"read":"whole","date_system":"1900"}

{"sheet":"Lista de Estudantes","index":0,"n_rows":8,"n_cols":13,"rows_kept":8,"merged":[[1,2,2,3],[1,4,1,11],[2,4,2,11],[6,12,8,16]]}
[]
[null,null,"Lista de Estudantes",null,"IR PARA A LISTA DA TURMA"]
[{"$nulls":4},"IR PARA OS DETALHES DO ESTUDANTE"]
[null,null,"NOME DO ESTUDANTE","E-MAIL","TELEFONE DE CASA","TELEMÓVEL","DATA DE NASCIMENTO","CONTACTO DE EMERGÊNCIA","TELEFONE DE EMERGÊNCIA","MÉDICO","TELEFONE DO MÉDICO","  "]
[null,null,"Nome 1","Endereço de e-mail","Telefone de casa","Telemóvel","Data","Contacto 1","Telefone de Emergência","Médico 1","Telefone do médico"]
[null,null,"Nome 2","Endereço de e-mail","Telefone de casa","Telemóvel","Data","Contacto 2","Telefone de Emergência","Médico 2","Telefone do médico"]
[null,null,"Nome 3","Endereço de e-mail","Telefone de casa","Telemóvel","Data","Contacto 3","Telefone de Emergência","Médico 3","Telefone do médico",null,"Sugestão: para adicionar mais estudantes, prima a Tecla de Tabulação na última célula da tabela."]
[null,null,"Nome 4","Endereço de e-mail","Telefone de casa","Telemóvel","Data","Contacto 4","Telefone de Emergência","Médico 4","Telefone do médico"]

{"sheet":"Lista da Turma","index":1,"n_rows":12,"n_cols":7,"rows_kept":12,"merged":[[1,2,2,2],[1,3,2,3],[1,4,1,6],[2,4,2,6]]}
[]
[null,null,"Lista da Turma","Instituto de Design Gráfico","IR PARA A LISTA DE ESTUDANTES"]
[{"$nulls":4},"IR PARA OS DETALHES DO ESTUDANTE"]
[null,null,"DISCIPLINA","Nome do curso","DATA DE INÍCIO","Data"]
[null,null,"PROFESSOR","Professor 1","DATA DE FIM","Data"]
[null,null,"ESTUDANTES INSCRITOS",{"$f":"COUNTA(Lista_De_Estudantes[NOME DO ESTUDANTE])","v":4}]
[]
[null,null,"NOME DO ESTUDANTE","E-MAIL","TELEFONE DE CASA","TELEMÓVEL","  "]
[null,null,"Nome 1",{"$f":"IFERROR(VLOOKUP(Lista_De_Estudantes[[#This Row],[NOME DO ESTUDANTE]],Estudantes[],2),\"\")","v":"Endereço de e-mail"},{"$f":"IFERROR(VLOOKUP(Lista_De_Estudantes[[#This Row],[NOME DO ESTUDANTE]],Estudantes[],3),\"\")","v":"Telefone de casa"},{"$f":"IFERROR(VLOOKUP(Lista_De_Estudantes[[#This Row],[NOME DO ESTUDANTE]],Estudantes[],4),\"\")","v":"Telemóvel"}]
[null,null,"Nome 2",{"$f":"IFERROR(VLOOKUP(Lista_De_Estudantes[[#This Row],[NOME DO ESTUDANTE]],Estudantes[],2),\"\")","v":"Endereço de e-mail"},{"$f":"IFERROR(VLOOKUP(Lista_De_Estudantes[[#This Row],[NOME DO ESTUDANTE]],Estudantes[],3),\"\")","v":"Telefone de casa"},{"$f":"IFERROR(VLOOKUP(Lista_De_Estudantes[[#This Row],[NOME DO ESTUDANTE]],Estudantes[],4),\"\")","v":"Telemóvel"}]
[null,null,"Nome 3",{"$f":"IFERROR(VLOOKUP(Lista_De_Estudantes[[#This Row],[NOME DO ESTUDANTE]],Estudantes[],2),\"\")","v":"Endereço de e-mail"},{"$f":"IFERROR(VLOOKUP(Lista_De_Estudantes[[#This Row],[NOME DO ESTUDANTE]],Estudantes[],3),\"\")","v":"Telefone de casa"},{"$f":"IFERROR(VLOOKUP(Lista_De_Estudantes[[#This Row],[NOME DO ESTUDANTE]],Estudantes[],4),\"\")","v":"Telemóvel"}]
[null,null,"Nome 4",{"$f":"IFERROR(VLOOKUP(Lista_De_Estudantes[[#This Row],[NOME DO ESTUDANTE]],Estudantes[],2),\"\")","v":"Endereço de e-mail"},{"$f":"IFERROR(VLOOKUP(Lista_De_Estudantes[[#This Row],[NOME DO ESTUDANTE]],Estudantes[],3),\"\")","v":"Telefone de casa"},{"$f":"IFERROR(VLOOKUP(Lista_De_Estudantes[[#This Row],[NOME DO ESTUDANTE]],Estudantes[],4),\"\")","v":"Telemóvel"}]

{"sheet":"Detalhes do Estudante","index":2,"n_rows":13,"n_cols":4,"rows_kept":13,"merged":[[1,2,2,2],[1,3,1,4],[2,3,2,4],[3,2,3,3]]}
[]
[null,null,"Detalhes do Estudante","IR PARA A LISTA DE ESTUDANTES"]
[{"$nulls":3},"IR PARA A LISTA DA TURMA"]
[null,null,"SUGESTÃO: SELECIONE UM ESTUDANTE A PARTIR DA LISTA PENDENTE NA CÉLULA D5 PARA ATUALIZAR OS DETALHES DO ESTUDANTE"]
[null,null,"NOME DO ESTUDANTE","Nome 1"]
[null,null,"E-MAIL",{"$f":"IFERROR(VLOOKUP(NomeDoEstudante,Estudantes[],2,FALSE),\"\")","v":"Endereço de e-mail"}]
[null,null,"TELEFONE DE CASA",{"$f":"IFERROR(VLOOKUP(NomeDoEstudante,Estudantes[],3,FALSE),\"\")","v":"Telefone de casa"}]
[null,null,"TELEMÓVEL",{"$f":"IFERROR(VLOOKUP(NomeDoEstudante,Estudantes[],4,FALSE),\"\")","v":"Telemóvel"}]
[null,null,"DATA DE NASCIMENTO",{"$f":"IFERROR(VLOOKUP(NomeDoEstudante,Estudantes[],5,FALSE),\"\")","v":"Data"}]
[null,null,"CONTACTO DE EMERGÊNCIA",{"$f":"IFERROR(VLOOKUP(NomeDoEstudante,Estudantes[],6,FALSE),\"\")","v":"Contacto 1"}]
[null,null,"TELEFONE DE EMERGÊNCIA",{"$f":"IFERROR(VLOOKUP(NomeDoEstudante,Estudantes[],7,FALSE),\"\")","v":"Telefone de Emergência"}]
[null,null,"MÉDICO",{"$f":"IFERROR(VLOOKUP(NomeDoEstudante,Estudantes[],8,FALSE),\"\")","v":"Médico 1"}]
[null,null,"TELEFONE DO MÉDICO",{"$f":"IFERROR(VLOOKUP(NomeDoEstudante,Estudantes[],9,FALSE),\"\")","v":"Telefone do médico"}]